Workbook

Sheet Instructions
P2: CDX Technologies Support
C3: Demographic Report for CDX Bulk Tools | P3: (973) 895-5542
P4: support@CDXTech.com
C7: This template will produce a summary report for the ZIP Code CSV data files created with the following CDX Bulk Demographic Tools.
C9: Zip Code Demographics Batch Report
C10: Zip Code Demographics By Radius Batch Report
C11: Zip Code Demographics By State and County Batch Report
C13: If you haven't already done so, please enable macros for this Excel file. Please refer to our website
C14: for instructions on how to do this. You will have to close the file prior to following these instructions.
C16: Begin by pressing the "Get Started" button above. This will take you to the "Data" worksheet where you can import your CSV data.
C17: Press the "Import CSV Data" button to do this or cut and copy your data into the file making sure to match the correct column headings.
C18: You can then review the report data on the "Demographics", "Population", "Race" and other tabs. A description of each of the
C19: demographic factors can be found on the "Definitions" tab.
C21: The data items that total ZIP Code data such as population will only be accurate if your list of ZIP Codes do not contain duplicates.
C22: After importing data, if the program finds duplicate ZIP Codes you will be given the option to consolidate and weight results. The end report
C23: will be sorted by ZIP Codes with the highest number of occurences first. This is useful in analyzing customer lists.
C25: The report name on the chart worksheets can be changed by updating cell L1 on the "Data" tab to reflect the nature of your ZIP Code list.
C26: Use the File "Save As" option to save the updated template under a new name. This ensures the original template will remain unchanged.
C28: Note: This template works with Microsoft Excel 2010 and higher designed to be used for up to 100,000 rows of data. If you need
C29: to analyze more data or require additional customization, please email customsolutions@cdxtech.com or call (877) 239-8321.
C31: V1.02 Copyright © 2023 Hughes Financial Services, Inc.

Sheet Data
D1: ="Zip Code Data for " & L1 -> Zip Code Data for Example List | K1: Report Name | L1: Example List
B2: Your Entry | C2: Distance | D2: City | E2: State | F2: Occurences | G2: Population | H2: Population Estimate | I2: Business Annual Payroll ($1000) | J2: Business First Quarter Payroll ($1000) | K2: Median Age | L2: Male Population | M2: Female Population | N2: Median Age Female | O2: Median Age Male | P2: Households | Q2: Persons Per Household | R2: Income Per Household | S2: Number of Businesses | T2: Number of Employees | U2: Delivery Business | V2: Delivery Residential | W2: Delivery Total | X2: Median House Value | Y2: CBSA Population | Z2: CBSA Division Population | AA2: CBSA Name | AB2: CBSA Number | AC2: CBSA Type | AD2: City Alias Name | AE2: State Full Name | AF2: State FIPS | AG2: County Name | AH2: County FIPS | AI2: Latitude | AJ2: Longitude | AK2: Region | AL2: Division | AM2: Area Code | AN2: DayLight Savings | AO2: Land Area | AP2: Water Area | AQ2: Congressional District | AR2: Congressional Land Area | AS2: Asian Population | AT2: Black or African American Population | AU2: American Indian or Alaskan Native Population | AV2: Native Hawaiian or other Pacific Islander Population | AW2: White Population | AX2: Other Population | AY2: Growing Counties A | AZ2: Growing Counties B | BA2: Growth Increase Number | BB2: Growth Increase Percentage | BC2: Growth Rank | BD2: ACS Age Median | BE2: ACS Age Median Female | BF2: ACS Age Median Male | BG2: ACS Households Total | BH2: ACS Household Income Median | BI2: ACS Household Size Average | BJ2: ACS Housing Value Median | BK2: ACS Population | BL2: ACS Population Female | BM2: ACS Population Male | BN2: ACS Race Asian | BO2: ACS Race Black | BP2: ACS Race Hawaiian | BQ2: ACS Race Indian | BR2: ACS Race Other | BS2: ACS Race White | BT2: ACS Race Two Or More | BU2: ACS Race Hispanic | BV2: ACS Race Non-Hispanic
B3: 90210 | D3: BEVERLY HILLS | E3: CA | F3: 1 | G3: 21741 | H3: 23605 | I3: 2570383 | J3: 590989 | K3: 47.5 | L3: 10292 | M3: 11449 | N3: 47.1 | O3: 47.9 | P3: 8669 | Q3: 2.49 | R3: 149732 | S3: 2466 | T3: 37602 | U3: 1439 | V3: 9480 | W3: 10814 | X3: 2000000 | Y3: 0 | Z3: 9818605 | AA3: Los Angeles-Long Beach-Anaheim, CA | AB3: 31080 | AC3: Metro | AD3: BEVERLY HILLS | AE3: California | AF3: 6 | AG3: LOS ANGELES | AH3: 37 | AI3: 34.103131 | AJ3: -118.416253 | AK3: West | AL3: Pacific | AM3: 310/424 | AN3: Y | AO3: 10.126 | AP3: 0.061 | AQ3: 28|30|33 | AR3: 218.45|135.94|288.58 | AS3: 1966 | AT3: 471 | AU3: 80 | AV3: 55 | AW3: 19761 | AX3: 387 | AY3: 0 | AZ3: 0 | BA3: 0 | BB3: 0 | BC3: 0 | BD3: 49.2 | BE3: 50.8 | BF3: 48.1 | BG3: 7936 | BH3: 147270 | BI3: 2.43 | BJ3: 2000000 | BK3: 19314 | BL3: 9934 | BM3: 9380 | BN3: 1383 | BO3: 229 | BP3: 0 | BQ3: 26 | BR3: 321 | BS3: 16672 | BT3: 683 | BU3: 799 | BV3: 18515
B4: 90272 | D4: PACIFIC PALISADES | E4: CA | F4: 1 | G4: 22986 | H4: 23216 | I4: 298837 | J4: 61908 | K4: 47.3 | L4: 10952 | M4: 12034 | N4: 47.7 | O4: 46.8 | P4: 9212 | Q4: 2.49 | R4: 180962 | S4: 887 | T4: 6211 | U4: 530 | V4: 9324 | W4: 10707 | X4: 2000000 | Y4: 0 | Z4: 9818605 | AA4: Los Angeles-Long Beach-Anaheim, CA | AB4: 31080 | AC4: Metro | AD4: PACIFIC PALISADES | AE4: California | AF4: 6 | AG4: LOS ANGELES | AH4: 37 | AI4: 34.078345 | AJ4: -118.5475 | AK4: West | AL4: Pacific | AM4: 424 | AN4: Y | AO4: 22.832 | AP4: 0.55 | AQ4: 33 | AR4: 288.58 | AS4: 1692 | AT4: 288 | AU4: 115 | AV4: 41 | AW4: 21334 | AX4: 265 | AY4: 0 | AZ4: 0 | BA4: 0 | BB4: 0 | BC4: 0 | BD4: 47.7 | BE4: 48.6 | BF4: 46.8 | BG4: 8724 | BH4: 192500 | BI4: 2.47 | BJ4: 2000000 | BK4: 21629 | BL4: 11206 | BM4: 10423 | BN4: 1251 | BO4: 86 | BP4: 6 | BQ4: 20 | BR4: 79 | BS4: 18972 | BT4: 1215 | BU4: 1009 | BV4: 20620
B5: 06830 | D5: GREENWICH | E5: CT | F5: 1 | G5: 24027 | H5: 25162 | I5: 2872620 | J5: 993221 | K5: 42.4 | L5: 11263 | M5: 12764 | N5: 44.1 | O5: 40.2 | P5: 9766 | Q5: 2.43 | R5: 107086 | S5: 1518 | T5: 20947 | U5: 1481 | V5: 10355 | W5: 11773 | X5: 1465100 | Y5: 916829 | Z5: 0 | AA5: Bridgeport-Stamford-Norwalk, CT | AB5: 14860 | AC5: Metro | AD5: BELLE HAVEN | AE5: Connecticut | AF5: 9 | AG5: FAIRFIELD | AH5: 1 | AI5: 41.039806 | AJ5: -73.625848 | AK5: Northeast | AL5: New England | AM5: 203/475 | AN5: Y | AO5: 13.538 | AP5: 4.843 | AQ5: 4 | AR5: 460.73 | AS5: 1851 | AT5: 1048 | AU5: 107 | AV5: 23 | AW5: 20477 | AX5: 1116 | AY5: 0 | AZ5: 0 | BA5: 0 | BB5: 0 | BC5: 0 | BD5: 43 | BE5: 45.2 | BF5: 40.6 | BG5: 9510 | BH5: 119838 | BI5: 2.6 | BJ5: 1505200 | BK5: 25036 | BL5: 13170 | BM5: 11866 | BN5: 1716 | BO5: 1348 | BP5: 31 | BQ5: 17 | BR5: 968 | BS5: 20058 | BT5: 898 | BU5: 5348 | BV5: 19688
B6: 78746 | D6: AUSTIN | E6: TX | F6: 1 | G6: 26928 | H6: 29659 | I6: 3956503 | J6: 938099 | K6: 41.1 | L6: 13319 | M6: 13609 | N6: 41.4 | O6: 40.8 | P6: 10839 | Q6: 2.47 | R6: 136138 | S6: 2525 | T6: 43551 | U6: 2372 | V6: 12008 | W6: 18772 | X6: 812900 | Y6: 1716289 | Z6: 0 | AA6: Austin-Round Rock-Georgetown, TX | AB6: 12420 | AC6: Metro | AD6: AUSTIN | AE6: Texas | AF6: 48 | AG6: TRAVIS | AH6: 453 | AI6: 30.295657 | AJ6: -97.813727 | AK6: South | AL6: West South Central | AM6: 512 | AN6: Y | AO6: 22.494 | AP6: 0.912 | AQ6: 10|21|25 | AR6: 5070.95|5920.89|7620.7 | AS6: 2079 | AT6: 262 | AU6: 227 | AV6: 38 | AW6: 24477 | AX6: 399 | AY6: 1024272 | AZ6: 1063130 | BA6: 38858 | BB6: 3.8 | BC6: 28 | BD6: 42.4 | BE6: 41.8 | BF6: 43.1 | BG6: 10894 | BH6: 151801 | BI6: 2.6 | BJ6: 903900 | BK6: 28608 | BL6: 14775 | BM6: 13833 | BN6: 2125 | BO6: 284 | BP6: 0 | BQ6: 6 | BR6: 305 | BS6: 25430 | BT6: 458 | BU6: 4048 | BV6: 24560

Sheet Demographics
A1: ="Demographic Totals and Averages for " & Data!L1 -> Demographic Totals and Averages for Example List
B2: Population | C2: =SUM(Data!G3:G100000) -> 95682 | D2: Delivery Business | E2: =SUM(Data!U3:U100000) -> 5822
B3: Population Estimate | C3: =SUM(Data!H3:H100000) -> 101642 | D3: Delivery Residential | E3: =SUM(Data!V3:V100000) -> 41167
B4: Business Annual Payroll ($1000) | C4: =SUM(Data!I3:I100000) -> 9698343 | D4: Delivery Total | E4: =SUM(Data!W4:W100000) -> 41252
B5: Business First Quarter ($1000) | C5: =SUM(Data!J3:J100000) -> 2584217 | D5: Median Housing Value | E5: =SUMPRODUCT(Data!$F$3:$F$100000,Data!$X$3:$X$100000*($W$3:$W$100000<>"0"))/SUMIF(Data!$X$3:$X$100000,"<>0",Data!$F$3:$F$100000) -> 1569500
B6: Median Age | C6: =SUMPRODUCT(Data!$F$3:$F$100000,Data!$K$3:$K$100000*($K$3:$K$100000<>"0"))/SUMIF(Data!$K$3:$K$100000,"<>0",Data!$F$3:$F$100000) -> 44.575 | D6: Income Per Household | E6: =SUMPRODUCT(Data!$F$3:$F$100000,Data!$R$3:$R$100000*($R$3:$R$100000<>"0"))/SUMIF(Data!$R$3:$R$100000,"<>0",Data!$F$3:$F$100000) -> 143479.5
B7: Median Age Female | C7: =SUMPRODUCT(Data!$F$3:$F$100000,Data!$N$3:$N$100000*($N$3:$N$100000<>"0"))/SUMIF(Data!$N$3:$N$100000,"<>0",Data!$F$3:$F$100000) -> 45.075 | D7: Number of Businesses | E7: =SUM(Data!S3:S1000000) -> 7396
B8: Median Age Male | C8: =SUMPRODUCT(Data!$F$3:$F$100000,Data!$O$3:$O$100000*($O$3:$O$100000<>"0"))/SUMIF(Data!$O$3:$O$100000,"<>0",Data!$F$3:$F$100000) -> 43.925 | D8: Number of Employees | E8: =SUM(Data!T3:T100000) -> 108311
B9: Households | C9: =SUM(Data!P3:P100000) -> 38486 | D9: Persons Per Household | E9: =SUMPRODUCT(Data!$F$3:$F$100000,Data!$Q$3:$Q$100000*($P$3:$P$100000<>"0"))/SUMIF(Data!$Q$3:$Q$100000,"<>0",Data!$F$3:$F$100000) -> 2.47

Sheet ACS Demographics
A1: ="ACS Demographic Totals and Averages for " & Data!L1 -> ACS Demographic Totals and Averages for Example List
B2: Population | C2: =SUM(Data!BK3:BK100000) -> 94587 | D2: Households | E2: =SUM(Data!P3:P100000) -> 38486
B3: Median Age | C3: =SUMPRODUCT(Data!$F$3:$F$100000,Data!$BD$3:$BD$100000*($BD$3:$BD$100000<>"0"))/SUMIF(Data!$BD$3:$BD$100000,"<>0",Data!$F$3:$F$100000) -> 45.575 | D3: Persons Per Household | E3: =SUMPRODUCT(Data!$F$3:$F$100000,Data!$BI$3:$BI$100000*($BI$3:$BI$100000<>"0"))/SUMIF(Data!$BI$3:$BI$100000,"<>0",Data!$F$3:$F$100000) -> 2.525
B4: Median Age Female | C4: =SUMPRODUCT(Data!$F$3:$F$100000,Data!$BE$3:$BE$100000*($BE$3:$BE$100000<>"0"))/SUMIF(Data!$BE$3:$BE$100000,"<>0",Data!$F$3:$F$100000) -> 46.6 | D4: Income Per Household | E4: =SUMPRODUCT(Data!$F$3:$F$100000,Data!$BH$3:$BH$100000*($BH$3:$BH$100000<>"0"))/SUMIF(Data!$BH$3:$BH$100000,"<>0",Data!$F$3:$F$100000) -> 152852.25
B5: Median Age Male | C5: =SUMPRODUCT(Data!$F$3:$F$100000,Data!$BF$3:$BF$100000*($BF$3:$BF$100000<>"0"))/SUMIF(Data!$BF$3:$BF$100000,"<>0",Data!$F$3:$F$100000) -> 44.65 | D5: Median Housing Value | E5: =SUMPRODUCT(Data!$F$3:$F$100000,Data!$BJ$3:$BJ$100000*($BJ$3:$BJ$100000<>"0"))/SUMIF(Data!$BJ$3:$BJ$100000,"<>0",Data!$F$3:$F$100000) -> 1602275

Sheet Population
A1: ="Gender Information for " & Data!L1 -> Gender Information for Example List
F2: Number | G2: Percent
E3: Male | F3: =SUM(Data!L3:L100000) -> 45826 | G3: =F3/(F$5+0.000001) -> 0.4789406576
E4: Female | F4: =SUM(Data!M3:M100000) -> 49856 | G4: =F4/(F$5+0.000001) -> 0.5210593424
E5: Total Population | F5: =SUM(F3,F4) -> 95682 | G5: 1

Sheet ACS Population
A1: ="ACS Gender Information for " & Data!L1 -> ACS Gender Information for Example List
F2: Number | G2: Percent
E3: Male | F3: =SUM(Data!BM3:BM100000) -> 45502 | G3: =F3/(F$5+0.000001) -> 0.4810597651
E4: Female | F4: =SUM(Data!BL3:BL100000) -> 49085 | G4: =F4/(F$5+0.000001) -> 0.5189402349
E5: Total Population | F5: =SUM(F3,F4) -> 94587 | G5: 1

Sheet Race
A1: ="Race Information for "& Data!L1 -> Race Information for Example List
D2: Number | E2: Percent
C3: Asian | D3: =SUM(Data!AS$3:AS$100000) -> 7588 | E3: =D3/($D$9+0.000000001) -> 0.07698941751
C4: Black or African American | D4: =SUM(Data!AT$3:AT$100000) -> 2069 | E4: =D4/($D$9+0.000000001) -> 0.02099250195
C5: American Indian or Alaskan Native | D5: =SUM(Data!AU$3:AU$100000) -> 529 | E5: 0.005367343419
C6: Native Hawaiian or other Pacific Islander | D6: =SUM(Data!AV$3:AV$100000) -> 157 | E6: 0.001592954474
C7: White | D7: =SUM(Data!AW$3:AW$100000) -> 86049 | E7: 0.8730709524
C8: Other | D8: =SUM(Data!AX$3:AX$100000) -> 2167 | E8: 0.02198683022
C9: Total Population | D9: =SUM(D3:D8) -> 98559 | E9: 1

Sheet ACS Race
A1: ="ACS Race Information for "& Data!L1 -> ACS Race Information for Example List
D2: Number | E2: Percent
C3: Asian | D3: =SUM(Data!BN$3:BN$100000) -> 6475 | E3: =D3/($D$10+0.000000001) -> 0.068455496
C4: Black or African American | D4: =SUM(Data!BO$3:BO$100000) -> 1947 | E4: =D4/($D$10+0.000000001) -> 0.02058422405
C5: American Indian or Alaskan Native | D5: =SUM(Data!BQ$3:BQ$100000) -> 69 | E5: 0.0007294871388
C6: Native Hawaiian or other Pacific Islander | D6: =SUM(Data!BP$3:BP$100000) -> 37 | E6: 0.0003911742628
C7: White | D7: =SUM(Data!BS$3:BS$100000) -> 81132 | E7: 0.8577500079
C8: Two or More Races | D8: =SUM(Data!BT$3:BT$100000) -> 3254 | E8: =D8/($D$10+0.000000001) -> 0.03440219058
C9: Other | D9: =SUM(Data!BR$3:BR$100000) -> 1673 | E9: 0.01768742005
C10: Total Population | D10: =SUM(D3:D9) -> 94587 | E10: 1

Sheet Income Distribution
A1: ="Household Income Distribution for "& Data!L1 -> Household Income Distribution for Example List
D2: Number | E2: Percent
C3: 0-25K* | D3: =SUMIFS(Data!$F$3:$F$100000,Data!$R$3:$R$100000,"<=25000")+SUMIFS(Data!$F$3:$F$100000,Data!$R$3:$R$100000,"") -> 0 | E3: =D3/($D$9+0.000000001) -> 0
C4: >25K to 50K | D4: =SUMIFS(Data!$F$3:$F$100000,Data!$R$3:$R$100000,"<=50000",Data!$R$3:$R$100000,">25000") -> 0 | E4: =D4/($D$9+0.000000001) -> 0
C5: 50K to 75K | D5: =SUMIFS(Data!$F$3:$F$100000,Data!$R$3:$R$100000,"<=75000",Data!$R$3:$R$100000,">50000") -> 0 | E5: 0
C6: 75K-100K | D6: =SUMIFS(Data!$F$3:$F$100000,Data!$R$3:$R$100000,"<=100000",Data!$R$3:$R$100000,">75000") -> 0 | E6: 0
C7: 100K - 125K | D7: =SUMIFS(Data!$F$3:$F$100000,Data!$R$3:$R$100000,"<=125000",Data!$R$3:$R$100000,">100000") -> 1 | E7: 0.2499999999
C8: >125K | D8: =SUMIFS(Data!$F$3:$F$100000,Data!$R$3:$R$100000,">125000") -> 3 | E8: 0.7499999998
C9: Total Zip Codes | D9: =SUM(D3:D8) -> 4 | E9: 0.9999999997
C10: Total Unique Zip Codes | D10: =COUNTA(Data!B3:B100000) -> 4
C11: *May include zip codes with no data

Sheet Housing Distribution
A1: ="House Value Distribution for "& Data!L1 -> House Value Distribution for Example List
D2: Number | E2: Percent
C3: 0-100K* | D3: =SUMIFS(Data!$F$3:$F$100000,Data!$X$3:$X$100000,"<=100000")+SUMIFS(Data!$F$3:$F$100000,Data!$X$3:$X$100000,"") -> 0 | E3: =D3/($D$9+0.000000001) -> 0
C4: >100K to 150K | D4: =SUMIFS(Data!$F$3:$F$100000,Data!$X$3:$X$100000,"<=150000",Data!$X$3:$X$100000,">100000") -> 0 | E4: =D4/($D$9+0.000000001) -> 0
C5: >150K to 250K | D5: =SUMIFS(Data!$F$3:$F$100000,Data!$X$3:$X$100000,"<=250000",Data!$X$3:$X$100000,">150000") -> 0 | E5: 0
C6: >250K-500K | D6: =SUMIFS(Data!$F$3:$F$100000,Data!$X$3:$X$100000,"<=500000",Data!$X$3:$X$100000,">250000") -> 0 | E6: 0
C7: >500K - 750K | D7: =SUMIFS(Data!$F$3:$F$100000,Data!$X$3:$X$100000,"<=750000",Data!$X$3:$X$100000,">500000") -> 0 | E7: 0
C8: >750K | D8: =SUMIFS(Data!$F$3:$F$100000,Data!$X$3:$X$100000,">750000") -> 4 | E8: 0.9999999997
C9: Total Zip Codes | D9: =SUM(D3:D8) -> 4 | E9: 0.9999999997
C10: Total Unique Zip Codes | D10: =COUNTA(Data!B3:B100000) -> 4
C11: *May include zip codes with no data

Sheet ACS HIspanic
A1: ="ACS Hispanic Information for "& Data!L1 -> ACS Hispanic Information for Example List
D2: Number | E2: Percent
C3: Hispanic | D3: =SUM(Data!BU$3:BU$100000) -> 11204 | E3: =D3/($D$5+0.000000001) -> 0.1184517957
C4: Non-Hispanic | D4: =SUM(Data!BV$3:BV$100000) -> 83383 | E4: =D4/($D$5+0.000000001) -> 0.8815482043
C5: Total Population | D5: =SUM(D3:D4) -> 94587 | E5: =D5/($D$5+0.000000001) -> 1

Sheet Definitions
B1: Definitions
B2: Population - The population of the Zip Code from the Year 2020 U.S. Census. The total on the "Demographics" page is the total for all zip codes on the "Data" sheet.
B4: ACS Population - The population of the Zip Code from the latest U.S. Census American Community Survey. The total on the "Demographics" page is the total for all zip codes on the "Data" sheet.
B6: Population Estimate - The current estimated household population of the Zip Code. The total on the "Demographics" page is the total for all zip codes on the "Data" sheet.
B8: Business Annual Payroll - The total annual payroll for this ZIP Code from the U.S. Business Census. The total on the "Demographics" page is the total for all zip codes on the "Data" sheet.
B10: Business First Quarter Payroll - The first quarter payroll for this ZIP Code from the U.S. Business Census. The total on the "Demographics" page is the total for all zip codes on the "Data" sheet.
B12: Median Age - The Median Age in the Zip Code the Year 2020 U.S. Census. The age on the "Demographics"sheet is the weighted average of all non-zero zip codes on the "Data" sheet.
B14: ACS Median Age - The Median Age in the Zip Code the latest U.S. Census American Community Survey. The age on the "Demographics"sheet is the weighted average of all non-zero zip codes on the "Data" sheet.
B16: Median Age Female - The Female Median Age in the Zip Code from the Year 2020 U.S. Census. The age on the "Demographics"sheet is the weighted average of all non-zero zip codes on the "Data" sheet.
B18: ACS Median Age Female - The Female Median Age in the Zip Code from the latest U.S. Census American Community Survey. The age on the "Demographics"sheet is the weighted average of all non-zero zip codes on the "Data" sheet.
B20: Median Age Male - The Male Median Age in the Zip Code the Year 2020 U.S. Census. The age on the "Demographics"sheet is the weighted average of all all non-zero zip codes on the "Data" sheet.
B22: ACS Median Age Male - The Male Median Age in the Zip Code from the latest U.S. Census American Community Survey. The age on the "Demographics"sheet is the weighted average of all non-zero zip codes on the "Data" sheet.
B24: Persons Per Household - The Persons per Household in the Zip Code from the Year 2020 U.S. Census. The number on the "Demographics"sheet is the weighted average of all all non-zero zip codes on the "Data" sheet.
B26: ACS Household Size Average - The Persons per Household in the Zip Code from the latest U.S. Census American Community Survey. The number on the "Demographics"sheet is the weighted average of all all non-zero zip codes on the "Data" sheet.
B28: IncomePerHousehold - The Income per Household in the Zip Code from the Year 2020 U.S. Census. The income on the "Demographics"sheet is the weighted average of all all non-zero zip codes on the "Data" sheet.
B30: ACS Household Income Median- The Income per Household in the Zip Code from the latest U.S. Census American Community Survey. The income on the "Demographics"sheet is the weighted average of all all non-zero zip codes on the "Data" sheet.
B32: Number of Businesses - The total number of Business Establishments for this zip Code from the U.S. Business Census. The total on the "Demographics" page is the total for all zip codes on the "Data" sheet.
B34: Number of Employees - The total number of employees for this ZIP Code from the U.S. Business Census. The total on the "Demographics" page is the total for all zip codes on the "Data" sheet.
B36: Delivery Business - This field provides the number of active business delivery mailboxes and centralized units for this ZIP Code. The total on the "Demographics" page is the total for all zip codes on the "Data" sheet.
B38: Delivery Residential - This field provides the number of active residential delivery mailboxes and centralized units for this ZIP Code. The total on the "Demographics" page is the total for all zip codes on the "Data" sheet.
B40: Delivery Total - This field provides the total number of active delivery mailboxes and centralized units for this ZIP Code. The total on the "Demographics" page is the total for all zip codes on the "Data" sheet.
B42: Average House Value - The Average House Value in the Zip Code from the Year 2010 U.S. Census. The value on the "Demographics"sheet is the weighted average of all zip codes on the "Data" sheet.
B44: Growing Counties A - The estimated number of housing units in this county as of July 1, 2010. Source: Population Division, U.S. Census. Bureau.
B46: Growing Counties B - The estimated number of housing units in this county as of. July 1, 2011. Source: Population Division, U.S. Census. Bureau
B48: Growth Increase Number - The change in housing units from 2003 to 2004, expressed as a number according to the US Census.
B50: Growth Increase Percentage - The change in housing units from 2010 to 2011, expressed as a percentage according to the US Census.
B52: Growth Rank - The growth rank for this county according to the US Census.
B54: CBSA Population - The estimated population for the selected CBSA in 2010.
B56: CBSA Division Population - The estimated population for the selected CBSA Division in 2010.
B58: CBSA Division - Core Based Statistical Area Division name
B60: Male Population - The Male population in the Zip Code from the Year 2020 U.S. Census. The total on the "Demographics" page is the total for all zip codes on the "Data" sheet.
B62: ACS Male Population - The Male population in the Zip Code from the latest U.S. Census American Community Survey. The total on the "Demographics" page is the total for all zip codes on the "Data" sheet.
B64: Female Population The Female population in the Zip Code from the Year 2020 U.S. Census. The total on the "Demographics" page is the total for all zip codes on the "Data" sheet.
B66: ACS Female Population The Female population in the Zip Code from the latest U.S. Census American Community Survey. The total on the "Demographics" page is the total for all zip codes on the "Data" sheet.
B68: Asian Population - The Asian population in the Zip Code from the Year 2020 U.S. Census. The total on the "Race" page is the total for all zip codes on the "Data" sheet.
B70: ACS Asian Population - The Asian population in the Zip Code from the latest U.S. Census American Community Survey. The total on the "Race" page is the total for all zip codes on the "Data" sheet.
B72: Black Population - The Black population in the Zip Code from the Year 2020 U.S. Census. The total on the "Race" page is the total for all zip codes on the "Data" sheet.
B74: ACS Black Population - The Black population in the Zip Code from the latest U.S. Census American Community Survey. The total on the "Race" page is the total for all zip codes on the "Data" sheet.
B76: Indian Population - The Indian population in the Zip Code from the Year 2020 U.S. Census. The total on the "Race" page is the total for all zip codes on the "Data" sheet.
B78: ACS Indian Population - The Indian population in the Zip Code from the latest U.S. Census American Community Survey. The total on the "Race" page is the total for all zip codes on the "Data" sheet.
B80: Hawaiian Population - The Hawaiian population in the Zip Code from the Year 2020 U.S. Census. The total on the "Race" page is the total for all zip codes on the "Data" sheet.
B82: ACS Hawaiian Population - The Hawaiian population in the Zip Code from the latest U.S. Census American Community Survey. The total on the "Race" page is the total for all zip codes on the "Data" sheet.
B84: White Population – The white population in the Zip Code from the Year 2020 U.S. Census. The total on the "Race" page is the total for all zip codes on the "Data" sheet.
B86: ACS White Population – The white population in the Zip Code from the the latest U.S. Census American Community Survey. The total on the "Race" page is the total for all zip codes on the "Data" sheet.
B88: Other Population - The non classified population in the Zip Code from the Year 2020 U.S. Census. The total on the "Race" page is the total for all zip codes on the "Data" sheet.
B90: ACS Other Population - The non classified population in the Zip Code from the latest U.S. Census American Community Survey. The total on the "Race" page is the total for all zip codes on the "Data" sheet.
